fUST/lending_fUST_20260417
["ID","MTS","AMOUNT","RATE_DAILY","PERIOD"]
[420627599,1776370234118,-500.0,8.219e-05,2]
[420627600,1776370234128,-1000.0,8.219e-05,2]
[420627601,1776370234138,-9355.7,8.219e-05,2]
[420627602,1776370234147,-2499.36,8.219e-05,2]
[420627603,1776370234157,-713.93,8.219e-05,2]
[420627604,1776370234167,-500.0,8.219e-05,2]
[420627605,1776370234176,-500.0,8.219e-05,2]
[420627606,1776370234185,-500.0,8.219e-05,2]
[420627607,1776370234194,-7615.12,8.219e-05,2]
[420627608,1776370234204,-500.0,8.219e-05,2]
[420627609,1776370234213,-500.0,8.219e-05,2]
[420627610,1776370234222,-1666.36,8.219e-05,2]
[420627611,1776370234232,-500.0,8.219e-05,2]
[420627612,1776370234241,-1337.52,8.219e-05,2]
[420627613,1776370234250,-3289.63,8.219e-05,2]
[420627614,1776370234260,-500.0,8.219e-05,2]
[420627615,1776370234270,-500.0,8.219e-05,2]
[420627616,1776370234279,-500.0,8.219e-05,2]
[420627617,1776370234288,-2341.97,8.219e-05,2]
[420627618,1776370234297,-500.0,8.219e-05,2]
[420627619,1776370234307,-500.0,8.219e-05,2]
[420627620,1776370234316,-803.03,8.219e-05,2]
[420627621,1776370234325,-500.0,8.219e-05,2]
[420627622,1776370234335,-845.82,8.219e-05,2]
[420627623,1776370234344,-500.0,8.219e-05,2]
[420627624,1776370234354,-500.0,8.219e-05,2]
[420627625,1776370234364,-500.0,8.219e-05,2]
[420627626,1776370234373,-1093.1,8.219e-05,2]
[420627627,1776370234382,-3068.48,8.219e-05,2]
[420627628,1776370234392,-3135.63,8.219e-05,2]
[420627629,1776370234401,-7677.56,8.219e-05,2]
[420627630,1776370234411,-288.49506625,8.219e-05,2]
[420627631,1776370234420,-3543.31,8.219e-05,2]
[420627632,1776370234430,-500.0,8.219e-05,2]
[420627633,1776370234439,-7270.69,8.219e-05,2]
[420627634,1776370234448,-500.0,8.219e-05,2]
[420627635,1776370234458,-500.0,8.219e-05,2]
[420627636,1776370234467,-1037.85,8.219e-05,2]
[420627637,1776370234476,-1121.99,8.219e-05,2]
[420627638,1776370234486,-6910.38,8.219e-05,2]
[420627639,1776370234495,-568.20645991,8.219e-05,2]
[420627640,1776370234505,-500.0,8.219e-05,2]
[420627641,1776370234515,-569.47,8.219e-05,2]
[420627642,1776370234524,-500.0,8.219e-05,2]
[420627643,1776370234533,-2379.3,8.219e-05,2]
[420627644,1776370234542,-500.0,8.219e-05,2]
[420627645,1776370234552,-1481.34,8.219e-05,2]
[420627646,1776370234562,-1225.23,8.219e-05,2]
[420627647,1776370234572,-1118.63,8.219e-05,2]
[420627648,1776370234581,-504.01,8.219e-05,2]
[420627649,1776370234591,-3047.99,8.219e-05,2]
[420627650,1776370234600,-500.0,8.219e-05,2]
[420627651,1776370234610,-500.0,8.219e-05,2]
[420627652,1776370234619,-2984.38,8.219e-05,2]
[420627653,1776370234629,-500.0,8.219e-05,2]
[420627654,1776370234638,-500.0,8.219e-05,2]
[420627655,1776370234647,-779.75,8.219e-05,2]
[420627656,1776370234657,-500.0,8.219e-05,2]
[420627657,1776370234667,-500.0,8.219e-05,2]
[420627658,1776370234677,-500.0,8.219e-05,2]
[420627659,1776370234686,-500.0,8.219e-05,2]
[420627660,1776370234696,-977.13,8.219e-05,2]
[420627661,1776370234705,-500.0,8.219e-05,2]
[420627662,1776370234714,-713.11,8.219e-05,2]
[420627663,1776370234723,-631.12,8.219e-05,2]
[420627664,1776370234733,-7425.17,8.219e-05,2]
[420627665,1776370234743,-500.0,8.219e-05,2]
[420627666,1776370234752,-1232.84,8.219e-05,2]
[420627667,1776370234761,-5634.17,8.219e-05,2]
[420627668,1776370234770,-500.0,8.219e-05,2]
[420627669,1776370234779,-2196.41,8.219e-05,2]
[420627670,1776370234788,-500.0,8.219e-05,2]
[420627671,1776370234797,-1065.27,8.219e-05,2]
[420627672,1776370234807,-500.0,8.219e-05,2]
[420627673,1776370234816,-5633.39,8.219e-05,2]
[420627674,1776370234825,-7772.69,8.219e-05,2]
[420627675,1776370234834,-1211.03,8.219e-05,2]
[420627676,1776370234843,-500.0,8.219e-05,2]
[420627677,1776370234852,-903.67,8.219e-05,2]
[420627678,1776370234861,-500.0,8.219e-05,2]
[420627679,1776370234870,-500.0,8.219e-05,2]
[420627680,1776370234879,-500.0,8.219e-05,2]
[420627681,1776370234888,-483.97521708,8.219e-05,2]
[420627682,1776370234897,-500.0,8.219e-05,2]
[420627683,1776370234907,-500.0,8.219e-05,2]
[420627684,1776370234916,-500.0,8.219e-05,2]
[420627685,1776370234926,-1415.13,8.219e-05,2]
[420627686,1776370234936,-867.0,8.219e-05,2]
[420627687,1776370234946,-500.0,8.219e-05,2]
[420627688,1776370234955,-5763.91,8.219e-05,2]
[420627689,1776370234964,-26437.83,8.219e-05,2]
[420627690,1776370234973,-595.39,8.219e-05,2]
[420627691,1776370234982,-1862.67,8.219e-05,2]
[420627692,1776370234991,-500.0,8.219e-05,2]
[420627693,1776370235001,-7376.68,8.219e-05,2]
[420627694,1776370235011,-1629.21,8.219e-05,2]
[420627695,1776370235021,-953.79,8.219e-05,2]
[420627696,1776370235032,-13501.51,8.219e-05,2]
[420627697,1776370235042,-669.98,8.219e-05,2]
[420627698,1776370235051,-804.79,8.219e-05,2]
[420627699,1776370235061,-500.0,8.219e-05,2]
[420627700,1776370235070,-1771.38,8.219e-05,2]
[420627701,1776370235079,-500.0,8.219e-05,2]
[420627702,1776370235088,-8330.49,8.219e-05,2]
[420627703,1776370235097,-500.0,8.219e-05,2]
[420627704,1776370235107,-152.0,8.221e-05,7]
[420627705,1776370235116,-2063.34386006,8.238e-05,2]
[420627733,1776370241185,-5000.0,8.156e-05,2]
[420627734,1776370241195,-8965.88,8.219e-05,2]
[420627735,1776370241204,-500.0,8.219e-05,2]
[420627736,1776370241213,-684.18,8.219e-05,2]
[420627737,1776370241222,-87.39413994,8.238e-05,2]
[420627738,1776370241232,-242.284832,8.337e-05,2]
[420627739,1776370241241,-160.0,8.383e-05,2]
[420627740,1776370241251,-1237.2757,8.493e-05,2]
[420627741,1776370241261,-686.26,8.493e-05,2]
[420627742,1776370241271,-179.61275335,8.493e-05,2]
[420627743,1776370241281,-1290.77,8.493e-05,2]
[420627744,1776370241290,-500.0,8.493e-05,2]
[420627745,1776370241300,-2209.23,8.493e-05,2]
[420627747,1776370241311,-576.34,8.493e-05,2]
[420627748,1776370241320,-500.0,8.493e-05,2]
[420627749,1776370241330,-710.43,8.493e-05,2]
[420627750,1776370241341,-500.0,8.493e-05,2]
[420627751,1776370241350,-500.0,8.493e-05,2]
[420627752,1776370241359,-557.77,8.493e-05,2]
[420627753,1776370241369,-500.0,8.493e-05,2]
[420627754,1776370241378,-631.22,8.493e-05,2]
[420627755,1776370241387,-648.05,8.493e-05,2]
[420627756,1776370241572,-500.0,8.493e-05,2]
[420627757,1776370241582,-580.93,8.493e-05,2]
[420627758,1776370241591,-500.0,8.493e-05,2]
[420627759,1776370241601,-500.0,8.493e-05,2]
[420627760,1776370241611,-500.0,8.493e-05,2]
[420627761,1776370241621,-500.0,8.493e-05,2]
[420627762,1776370241631,-500.0,8.493e-05,2]
[420627763,1776370241640,-500.0,8.493e-05,2]
[420627764,1776370241650,-384.21241094,8.493e-05,2]
[420627765,1776370241662,-115.78758906,8.493e-05,2]
[420627766,1776370241672,-500.0,8.493e-05,2]
[420627767,1776370241681,-27.99346843,8.493e-05,2]
[420627814,1776370247042,-500.0,8.219e-05,2]
[420627815,1776370247052,-629.07,8.219e-05,2]
[420627816,1776370247062,-964.08653157,8.493e-05,2]
[420627817,1776370247071,-519.72,8.493e-05,2]
[420627818,1776370247080,-500.0,8.493e-05,2]
[420627819,1776370247089,-500.0,8.493e-05,2]
[420627820,1776370247098,-500.0,8.493e-05,2]
[420627821,1776370247108,-500.0,8.493e-05,2]
[420627822,1776370247117,-589.1,8.493e-05,2]
[420627823,1776370247125,-1023.72,8.493e-05,2]
[420627824,1776370247135,-500.0,8.493e-05,2]
[420627825,1776370247144,-828.68,8.493e-05,2]
[420627826,1776370247153,-500.0,8.493e-05,2]
[420627827,1776370247162,-500.0,8.493e-05,2]
[420627828,1776370247171,-500.0,8.493e-05,2]
[420627829,1776370247181,-542.79588818,8.493e-05,2]
[420627830,1776370247191,-500.0,8.493e-05,2]
[420627831,1776370247200,-500.0,8.493e-05,2]
[420627832,1776370247209,-2009.28,8.493e-05,2]
[420627833,1776370247218,-500.0,8.493e-05,2]
[420627834,1776370247227,-1761.73,8.493e-05,2]
[420627835,1776370247236,-500.0,8.493e-05,2]
[420627836,1776370247245,-699.51,8.493e-05,2]
[420627837,1776370247255,-500.0,8.493e-05,2]
[420627839,1776370247267,-500.0,8.493e-05,2]
[420627841,1776370247276,-903.97,8.493e-05,2]
[420627843,1776370247285,-500.0,8.493e-05,2]
[420627845,1776370247294,-500.0,8.493e-05,2]
[420627847,1776370247303,-500.0,8.493e-05,2]
[420627849,1776370247312,-625.65,8.493e-05,2]
[420627851,1776370247322,-1635.87,8.493e-05,2]
[420627853,1776370247331,-500.0,8.493e-05,2]
[420627855,1776370247340,-500.0,8.493e-05,2]
[420627857,1776370247349,-500.0,8.493e-05,2]
[420627859,1776370247359,-500.0,8.493e-05,2]
[420627860,1776370247368,-500.0,8.493e-05,2]
[420627861,1776370247378,-500.0,8.493e-05,2]
[420627862,1776370247387,-500.0,8.493e-05,2]
[420627864,1776370247397,-1055.28,8.493e-05,2]
[420627866,1776370247406,-500.0,8.493e-05,2]
[420627868,1776370247415,-500.0,8.493e-05,2]
[420627870,1776370247424,-500.0,8.493e-05,2]
[420627872,1776370247433,-500.0,8.493e-05,2]
[420627874,1776370247444,-500.0,8.493e-05,2]
[420627877,1776370247456,-1000.0,8.493e-05,2]
[420627879,1776370247465,-2499.36,8.493e-05,2]
[420627881,1776370247475,-500.0,8.493e-05,2]
[420627883,1776370247484,-500.0,8.493e-05,2]
[420627885,1776370247493,-500.0,8.493e-05,2]
[420627887,1776370247502,-7615.12,8.493e-05,2]
[420627889,1776370247511,-500.0,8.493e-05,2]
[420627890,1776370247521,-169.06291084,8.493e-05,2]
[420627892,1776370247530,-500.0,8.493e-05,2]
[420627893,1776370247540,-1666.36,8.493e-05,2]
[420627894,1776370247549,-500.0,8.493e-05,2]
[420627895,1776370247558,-1337.52,8.493e-05,2]
[420627896,1776370247568,-3289.63,8.493e-05,2]
[420627898,1776370247577,-500.0,8.493e-05,2]
[420627900,1776370247586,-500.0,8.493e-05,2]
[420627902,1776370247596,-500.0,8.493e-05,2]
[420627903,1776370247605,-2341.97,8.493e-05,2]
[420627906,1776370247614,-500.0,8.493e-05,2]
[420627908,1776370247623,-500.0,8.493e-05,2]
[420627909,1776370247632,-500.0,8.493e-05,2]
[420627910,1776370247641,-845.82,8.493e-05,2]
[420627911,1776370247650,-500.0,8.493e-05,2]
[420627912,1776370247659,-500.0,8.493e-05,2]
[420627914,1776370247668,-500.0,8.493e-05,2]
[420627916,1776370247677,-1093.1,8.493e-05,2]
[420627918,1776370247686,-3068.48,8.493e-05,2]
[420627920,1776370247696,-3135.63,8.493e-05,2]
[420627922,1776370247706,-7677.56,8.493e-05,2]
[420627924,1776370247715,-3543.31,8.493e-05,2]
[420627925,1776370247724,-500.0,8.493e-05,2]
[420627926,1776370247734,-7270.69,8.493e-05,2]
[420627927,1776370247743,-500.0,8.493e-05,2]
[420627928,1776370247752,-500.0,8.493e-05,2]
[420627929,1776370247762,-1037.85,8.493e-05,2]
[420627930,1776370247771,-1121.99,8.493e-05,2]
[420627931,1776370247780,-4592.94787823,8.493e-05,2]
[420627934,1776370248110,-2317.43212177,8.493e-05,2]
[420627935,1776370248119,-500.0,8.493e-05,2]
[420627936,1776370248129,-569.47,8.493e-05,2]
[420627937,1776370248139,-500.0,8.493e-05,2]
[420627938,1776370248149,-2379.3,8.493e-05,2]
[420627939,1776370248161,-500.0,8.493e-05,2]
[420627940,1776370248170,-704.1923704,8.493e-05,2]
[420627970,1776371431848,-758.80645586,7.14e-05,2]
[420627976,1776371431903,-278.89429411,7.14e-05,2]
[420627978,1776371431913,-5000.0,7.212e-05,2]
[420627980,1776371431922,-368.28806952,7.471e-05,2]
[420627982,1776371431931,-675.57539173,7.665e-05,2]
[420627984,1776371431941,-61.50919903,8.018e-05,2]
[420628348,1776371440620,-269.27561791,7.938e-05,2]
[420628521,1776371447007,-3828.66758559,7.938e-05,2]
[420628522,1776371447017,-274.77937637,8.018e-05,2]
[420628523,1776371447026,-373.50303804,8.019e-05,2]
[420628524,1776371447184,-66402.96150454,8.019e-05,2]
[420628525,1776371447193,-237.33894608,8.068e-05,2]
[420628526,1776371447202,-948.40642852,8.068e-05,2]
[420628527,1776371447211,-500.0,8.093e-05,2]
[420628528,1776371447220,-264.20013892,8.093e-05,2]
[420628529,1776371447229,-500.0,8.093e-05,2]
[420628530,1776371447238,-180.15930035,8.093e-05,2]
[420628531,1776371447249,-259.19525566,8.093e-05,2]
[420628532,1776371447258,-500.0,8.093e-05,2]
[420628533,1776371447267,-500.0,8.093e-05,2]
[420628534,1776371447276,-500.0,8.093e-05,2]
[420628535,1776371447286,-500.0,8.093e-05,2]
[420628536,1776371447295,-500.0,8.093e-05,2]
[420628537,1776371447305,-500.0,8.118e-05,2]
[420628538,1776371447314,-500.0,8.118e-05,2]
[420628539,1776371447324,-604.82931434,8.118e-05,2]
[420628540,1776371447333,-441.24184949,8.118e-05,2]
[420628541,1776371447343,-500.0,8.118e-05,2]
[420628542,1776371447352,-500.0,8.118e-05,2]
[420628543,1776371447362,-500.0,8.118e-05,2]
[420628544,1776371447371,-500.0,8.118e-05,2]
[420628545,1776371447380,-500.0,8.118e-05,2]
[420628546,1776371447390,-500.0,8.118e-05,2]
[420628547,1776371447399,-500.0,8.118e-05,2]
[420628548,1776371447408,-500.0,8.118e-05,2]
[420628549,1776371447417,-500.0,8.118e-05,2]
[420628550,1776371447426,-500.0,8.118e-05,2]
[420628551,1776371447435,-500.0,8.118e-05,2]
[420628552,1776371447444,-450.0,8.118e-05,2]
[420628553,1776371447454,-500.0,8.118e-05,2]
[420628554,1776371447463,-500.0,8.118e-05,2]
[420628555,1776371447472,-500.0,8.118e-05,2]
[420628556,1776371447481,-500.0,8.118e-05,2]
[420628557,1776371447490,-500.0,8.118e-05,2]
[420628558,1776371447499,-416696.26036636,8.119e-05,2]
[420628570,1776372469421,500.0,3.003e-05,2]
[420628571,1776372469447,500.0,3.003e-05,2]
[420628572,1776372483957,5000.0,3.002e-05,2]
[420628708,1776372638563,-4000.0,3.003e-05,2]
[420628709,1776372638572,-1036.29911567,3.053e-05,2]
[420628710,1776372638722,-550.507543,3.053e-05,2]
[420628711,1776372638731,-370.09795847,3.099e-05,2]
[420628712,1776372638740,-300.0,3.273e-05,2]
[420628713,1776372638750,-166.7359115,3.275e-05,2]
[420628714,1776372638759,-436.715591,5.099e-05,2]
[420628715,1776372638768,-366.890536,5.577e-05,2]
[420628716,1776372638778,-366.890536,5.812e-05,2]
[420628717,1776372638788,-366.890536,6.046e-05,2]
[420628718,1776372638797,-1200.0,6.28e-05,2]
[420628719,1776372638806,-366.890536,6.281e-05,2]
[420628720,1776372638816,-366.890536,6.516e-05,2]
[420628721,1776372638825,-151.0,6.528e-05,2]
[420628723,1776372638834,-366.890536,6.751e-05,2]
[420628725,1776372638843,-503.33322353,7.099e-05,2]
[420628726,1776372638852,-196.3945489,7.35e-05,2]
[420628727,1776372638861,-2208.52162508,7.409e-05,2]
[420628728,1776372638871,-4439.1597595,7.509e-05,2]
[420628729,1776372638880,-4674.73544087,7.609e-05,2]
[420628730,1776372638889,-688.8,7.609e-05,2]
[420628731,1776372638899,-187.652,7.609e-05,2]
[420628732,1776372638908,-5033.81136229,7.701e-05,2]
[420628733,1776372638917,-500.0,7.818e-05,2]
[420628734,1776372638926,-273.38052003,7.818e-05,2]
[420628735,1776372638935,-500.0,7.818e-05,2]
[420628736,1776372638944,-500.0,7.818e-05,2]
[420628737,1776372638953,-623.86929464,7.818e-05,2]
[420628738,1776372638962,-500.0,7.818e-05,2]
[420628739,1776372638971,-500.0,7.818e-05,2]
[420628740,1776372638980,-500.0,7.818e-05,2]
[420628741,1776372638989,-500.0,7.818e-05,2]
[420628742,1776372638998,-500.0,7.818e-05,2]
[420628743,1776372639008,-500.0,7.818e-05,2]
[420628744,1776372639016,-500.0,7.818e-05,2]
[420628745,1776372639026,-500.0,7.818e-05,2]
[420628746,1776372639035,-500.0,7.818e-05,2]
[420628747,1776372639044,-300.0,7.818e-05,2]
[420628748,1776372639053,-352316.73753028,7.819e-05,2]
[420628749,1776372639062,-208819.86920339,7.819e-05,2]
[420628750,1776372639071,-971.06979853,7.819e-05,2]
[420628751,1776372639080,-600.0,8.075e-05,2]
[420628752,1776372639089,-25742.36519,8.096e-05,2]
[420628753,1776372639099,-154.425852,8.096e-05,2]
[420628754,1776372639108,-152.0,8.134e-05,7]
[420628755,1776372639118,-162.380719,8.18e-05,2]
[420628756,1776372639127,-445.202766,8.18e-05,2]
[420628757,1776372639136,-151.0,8.18e-05,2]
[420628758,1776372639145,-303.10151341,8.18e-05,2]
[420628759,1776372639155,-1957.856,8.18e-05,2]
[420628760,1776372639163,-537.6845,8.18e-05,2]
[420628761,1776372639173,-2150.738,8.18e-05,2]
[420628762,1776372639183,-155.0,8.218e-05,2]
[420628763,1776372639193,-1332.9244,8.219e-05,2]
[420628764,1776372639203,-500.0,8.219e-05,2]
[420628765,1776372639212,-500.0,8.219e-05,2]
[420628766,1776372639221,-517.76,8.219e-05,2]
[420628767,1776372639231,-506.18027543,8.219e-05,2]
[420628768,1776372639240,-504.47105142,8.219e-05,2]
[420628769,1776372639249,-529.53307889,8.219e-05,2]
[420628770,1776372639259,-516.37946326,8.219e-05,2]
[420628771,1776372639268,-649.26457085,8.219e-05,2]
[420628772,1776372639277,-512.81404117,8.219e-05,2]
[420628773,1776372639287,-507.78925312,8.219e-05,2]
[420628774,1776372639296,-639.34026644,8.219e-05,2]
[420628775,1776372639306,-500.0,8.219e-05,2]
[420628776,1776372639315,-500.0,8.219e-05,2]
[420628777,1776372639325,-600.61,8.219e-05,2]
[420628778,1776372639334,-500.0,8.219e-05,2]
[420628779,1776372639343,-500.0,8.219e-05,2]
[420628780,1776372639352,-500.0,8.219e-05,2]
[420628781,1776372639362,-1072.02,8.219e-05,2]
[420628782,1776372639371,-500.0,8.219e-05,2]
[420628783,1776372639381,-500.0,8.219e-05,2]
[420628784,1776372639390,-1181.47,8.219e-05,2]
[420628785,1776372639401,-500.0,8.219e-05,2]
[420628786,1776372639410,-500.0,8.219e-05,2]
[420628787,1776372639420,-500.0,8.219e-05,2]
[420628788,1776372639430,-1002.16,8.219e-05,2]
[420628789,1776372639439,-602.86,8.219e-05,2]
[420628790,1776372639448,-500.0,8.219e-05,2]
[420628791,1776372639457,-500.0,8.219e-05,2]
[420628792,1776372639467,-500.0,8.219e-05,2]
[420628793,1776372639475,-1183.2,8.219e-05,2]
[420628794,1776372639485,-500.0,8.219e-05,2]
[420628795,1776372639494,-500.0,8.219e-05,2]
[420628796,1776372639503,-500.0,8.219e-05,2]
[420628797,1776372639513,-245.29543045,8.219e-05,2]
[420628798,1776372639523,-2025.12,8.219e-05,2]
[420628799,1776372639533,-500.0,8.219e-05,2]
[420628800,1776372639542,-500.0,8.219e-05,2]
[420628801,1776372639551,-505.75522018,8.219e-05,2]
[420628802,1776372639560,-500.0,8.219e-05,2]
[420628803,1776372639569,-500.0,8.219e-05,2]
[420628804,1776372639579,-528.32,8.219e-05,2]
[420628805,1776372639588,-587.84,8.219e-05,2]
[420628806,1776372639597,-909.41,8.219e-05,2]
[420628807,1776372639606,-500.0,8.219e-05,2]
[420628808,1776372639616,-971.66,8.219e-05,2]
[420628809,1776372639625,-500.0,8.219e-05,2]
[420628810,1776372639634,-381.8132907,8.219e-05,2]
[420628811,1776372639644,-511.29,8.219e-05,2]
[420628812,1776372639653,-796.63,8.219e-05,2]
[420628813,1776372639663,-500.0,8.219e-05,2]
[420628814,1776372639672,-500.0,8.219e-05,2]
[420628815,1776372639681,-1841.84,8.219e-05,2]
[420628816,1776372639690,-1614.92,8.219e-05,2]
[420628817,1776372639700,-411.23478418,8.219e-05,2]
[420628818,1776372639709,-641.21,8.219e-05,2]
[420628819,1776372639719,-1252.37,8.219e-05,2]
[420628820,1776372639728,-618.53,8.219e-05,2]
[420628821,1776372639737,-500.0,8.219e-05,2]
[420628822,1776372639747,-500.0,8.219e-05,2]
[420628823,1776372639756,-578.62,8.219e-05,2]
[420628824,1776372639765,-500.0,8.219e-05,2]
[420628825,1776372639775,-515.60872216,8.219e-05,2]
[420628826,1776372639784,-573.51,8.219e-05,2]
[420628827,1776372639793,-500.0,8.219e-05,2]
[420628828,1776372639802,-500.0,8.219e-05,2]
[420628829,1776372639811,-828.64,8.219e-05,2]
[420628830,1776372639821,-500.0,8.219e-05,2]
[420628831,1776372639830,-1499.55,8.219e-05,2]
[420628832,1776372639839,-500.0,8.219e-05,2]
[420628833,1776372639848,-500.0,8.219e-05,2]
[420628834,1776372639857,-500.0,8.219e-05,2]
[420628835,1776372639866,-500.0,8.219e-05,2]
[420628836,1776372639875,-594.04,8.219e-05,2]
[420628837,1776372639885,-967.34,8.219e-05,2]
[420628838,1776372639894,-500.0,8.219e-05,2]
[420628839,1776372639904,-500.0,8.219e-05,2]
[420628840,1776372639913,-500.0,8.219e-05,2]
[420628841,1776372639922,-297.89144088,8.219e-05,2]
[420628843,1776372639931,-532.52,8.219e-05,2]
[420628845,1776372639941,-500.0,8.219e-05,2]
[420628846,1776372639950,-500.0,8.219e-05,2]
[420628847,1776372639959,-500.0,8.219e-05,2]
[420628848,1776372639968,-307.82130122,8.219e-05,2]
[420628849,1776372639978,-500.0,8.219e-05,2]
[420628850,1776372639987,-500.0,8.219e-05,2]
[420628851,1776372639996,-500.0,8.219e-05,2]
[420628852,1776372640005,-500.0,8.219e-05,2]
[420628853,1776372640014,-1226.06,8.219e-05,2]
[420628854,1776372640024,-500.0,8.219e-05,2]
[420628855,1776372640033,-500.0,8.219e-05,2]
[420628857,1776372640042,-3015.5,8.219e-05,2]
[420628859,1776372640051,-500.0,8.219e-05,2]
[420628861,1776372640060,-500.0,8.219e-05,2]
[420628863,1776372640069,-500.0,8.219e-05,2]
[420628865,1776372640079,-500.0,8.219e-05,2]
[420628867,1776372640088,-2146.8,8.219e-05,2]
[420628869,1776372640098,-7983.39,8.219e-05,2]
[420628870,1776372640107,-540.01,8.219e-05,2]
[420628871,1776372640117,-500.0,8.219e-05,2]
[420628873,1776372640126,-500.0,8.219e-05,2]
[420628875,1776372640135,-500.0,8.219e-05,2]
[420628877,1776372640144,-612.95209593,8.219e-05,2]
[420628878,1776372640153,-2874.33,8.219e-05,2]
[420628879,1776372640162,-500.0,8.219e-05,2]
[420628880,1776372640172,-7037.76,8.219e-05,2]
[420628881,1776372640182,-501.0,8.219e-05,2]
[420628882,1776372640191,-1488.68,8.219e-05,2]
[420628883,1776372640200,-500.0,8.219e-05,2]
[420628884,1776372640209,-6664.8,8.219e-05,2]
[420628885,1776372640218,-500.0,8.219e-05,2]
[420628886,1776372640227,-1028.49,8.219e-05,2]
[420628887,1776372640236,-500.0,8.219e-05,2]
[420628888,1776372640245,-1224.48,8.219e-05,2]
[420628889,1776372640255,-268.4695899,8.219e-05,2]
[420628890,1776372640264,-500.0,8.219e-05,2]
[420628891,1776372640273,-3746.2,8.219e-05,2]
[420628892,1776372640282,-523.7843309,8.219e-05,2]
[420628893,1776372640291,-500.0,8.219e-05,2]
[420628894,1776372640301,-500.0,8.219e-05,2]
[420628895,1776372640311,-2181.03,8.219e-05,2]
[420628896,1776372640321,-604.82,8.219e-05,2]
[420628897,1776372640330,-1390.27,8.219e-05,2]
[420628898,1776372640339,-3854.84,8.219e-05,2]
[420628899,1776372640349,-522.02,8.219e-05,2]
[420628900,1776372640358,-500.0,8.219e-05,2]
[420628901,1776372640367,-500.0,8.219e-05,2]
[420628902,1776372640376,-1174.18,8.219e-05,2]
[420628903,1776372640386,-683.4,8.219e-05,2]
[420628905,1776372640395,-500.0,8.219e-05,2]
[420628907,1776372640405,-2920.99,8.219e-05,2]
[420628909,1776372640415,-500.0,8.219e-05,2]
[420628912,1776372640425,-7115.79,8.219e-05,2]
[420628914,1776372640435,-500.0,8.219e-05,2]
[420628916,1776372640444,-936.42,8.219e-05,2]
[420628918,1776372640453,-500.0,8.219e-05,2]
[420628920,1776372640463,-500.0,8.219e-05,2]
[420628922,1776372640472,-1020.89,8.219e-05,2]
[420628924,1776372640482,-500.0,8.219e-05,2]
[420628926,1776372640491,-5399.41,8.219e-05,2]
[420628928,1776372640501,-1160.57,8.219e-05,2]
[420628930,1776372640510,-747.26,8.219e-05,2]
[420628932,1776372640519,-2104.89,8.219e-05,2]
[420628934,1776372640529,-500.0,8.219e-05,2]
[420628936,1776372640538,-500.0,8.219e-05,2]
[420628938,1776372640547,-500.0,8.219e-05,2]
[420628940,1776372640556,-500.0,8.219e-05,2]
[420628942,1776372640565,-7448.83,8.219e-05,2]
[420628944,1776372640575,-500.0,8.219e-05,2]
[420628946,1776372640584,-500.0,8.219e-05,2]
[420628948,1776372640593,-500.0,8.219e-05,2]
[420628950,1776372640603,-500.0,8.219e-05,2]
[420628951,1776372640612,-500.0,8.219e-05,2]
[420628953,1776372640621,-4948.78,8.219e-05,2]
[420628955,1776372640630,-507.74102667,8.219e-05,2]
[420628957,1776372640639,-500.0,8.219e-05,2]
[420628959,1776372640648,-5523.74,8.219e-05,2]
[420628961,1776372640659,-555.91,8.219e-05,2]
[420628963,1776372640668,-500.0,8.219e-05,2]
[420628965,1776372640678,-503.95781243,8.219e-05,2]
[420628967,1776372640687,-500.0,8.219e-05,2]
[420628969,1776372640697,-1785.06,8.219e-05,2]
[420628971,1776372640706,-480.48767611,8.219e-05,2]
[420628973,1776372640715,-25336.25,8.219e-05,2]
[420628975,1776372640724,-866.02,8.219e-05,2]
[420628977,1776372640733,-502.30414331,8.219e-05,2]
[420628979,1776372640742,-1561.33,8.219e-05,2]
[420628981,1776372640751,-771.26,8.219e-05,2]
[420628983,1776372640760,-727.27,8.219e-05,2]
[420628985,1776372640769,-2291.08,8.219e-05,2]
[420628987,1776372640778,-1356.16,8.219e-05,2]